[Event "Late-Titled-Tuesday-Blitz-September-12-2023"]
[Site "Chess.com"]
[Date "2023.09.12"]
[Round "7"]
[White "valemava"]
[Black "malakismayil"]
[Result "0-1"]
[WhiteElo "2357"]
[BlackElo "2515"]
[TimeControl "180+1"]
[EndTime "15:14:48 PDT"]
[Termination "malakismayil won on time"]

1. c4 {[%clk 0:03:00.9]} 1... e5 {[%clk 0:02:58.9]} 2. a3 {[%clk 0:03:00]} 2...
Nf6 {[%clk 0:02:58.3]} 3. b4 {[%clk 0:03:00.1]} 3... d5 {[%clk 0:02:58.4]} 4.
cxd5 {[%clk 0:03:00.1]} 4... Nxd5 {[%clk 0:02:59.3]} 5. Bb2 {[%clk 0:03:00.3]}
5... Bd6 {[%clk 0:02:59.4]} 6. Nf3 {[%clk 0:02:59.4]} 6... Qe7 {[%clk
0:02:59.2]} 7. Nc3 {[%clk 0:02:57.7]} 7... Nxc3 {[%clk 0:02:57]} 8. Bxc3 {[%clk
0:02:58.6]} 8... O-O {[%clk 0:02:57.2]} 9. e3 {[%clk 0:02:46.9]} 9... a5 {[%clk
0:02:55]} 10. b5 {[%clk 0:02:46.1]} 10... a4 {[%clk 0:02:53.2]} 11. d4 {[%clk
0:02:37.9]} 11... e4 {[%clk 0:02:49.1]} 12. Nd2 {[%clk 0:02:36]} 12... Bxa3
{[%clk 0:02:48.9]} 13. Qc2 {[%clk 0:02:17.9]} 13... Bf5 {[%clk 0:02:40.9]} 14.
Bc4 {[%clk 0:02:09.5]} 14... Nd7 {[%clk 0:02:38.7]} 15. O-O {[%clk 0:02:08.8]}
15... Nb6 {[%clk 0:02:36.2]} 16. Qa2 {[%clk 0:02:03.3]} 16... Bd6 {[%clk
0:02:33.3]} 17. d5 {[%clk 0:01:50.4]} 17... Qh4 {[%clk 0:02:23.8]} 18. g3 {[%clk
0:01:47.3]} 18... Qh3 {[%clk 0:02:23.6]} 19. Rfc1 {[%clk 0:01:45.5]} 19... h5
{[%clk 0:02:15.5]} 20. Bf1 {[%clk 0:01:44.5]} 20... Qg4 {[%clk 0:02:12.3]} 21.
Nc4 {[%clk 0:01:31.6]} 21... Nxc4 {[%clk 0:01:42.2]} 22. Qxc4 {[%clk 0:01:32.5]}
22... h4 {[%clk 0:01:39.2]} 23. Qe2 {[%clk 0:01:22]} 23... Qg5 {[%clk
0:01:28.8]} 24. Bg2 {[%clk 0:01:07.8]} 24... Bg4 {[%clk 0:01:23.2]} 25. Qd2
{[%clk 0:01:01.2]} 25... Bf3 {[%clk 0:01:08.1]} 26. Bb4 {[%clk 0:00:30.4]} 26...
Bxg2 {[%clk 0:01:00]} 27. Kxg2 {[%clk 0:00:29.4]} 27... Qg4 {[%clk 0:01:00.3]}
28. Bxd6 {[%clk 0:00:24.1]} 28... Qf3+ {[%clk 0:00:59]} 29. Kf1 {[%clk
0:00:23.8]} 29... cxd6 {[%clk 0:00:56.6]} 30. Ke1 {[%clk 0:00:21]} 30... Rfc8
{[%clk 0:00:37.5]} 31. Qe2 {[%clk 0:00:20.5]} 31... Qf5 {[%clk 0:00:25.4]} 32.
Qd2 {[%clk 0:00:14.4]} 32... Rxc1+ {[%clk 0:00:22.8]} 33. Rxc1 {[%clk
0:00:13.6]} 33... a3 {[%clk 0:00:23.3]} 34. Ra1 {[%clk 0:00:13.7]} 34... Qf3
{[%clk 0:00:19.8]} 35. Qe2 {[%clk 0:00:10.8]} 35... Qh1+ {[%clk 0:00:16.8]} 36.
Qf1 {[%clk 0:00:11]} 36... Qxh2 {[%clk 0:00:17.3]} 37. gxh4 {[%clk 0:00:10.9]}
37... Qxh4 {[%clk 0:00:17.3]} 38. Kd2 {[%clk 0:00:11.4]} 38... Qf6 {[%clk
0:00:17.1]} 39. Ra2 {[%clk 0:00:09.8]} 39... Qd8 {[%clk 0:00:14.3]} 40. Qc4
{[%clk 0:00:09.6]} 40... Qa5+ {[%clk 0:00:12.9]} 41. Ke2 {[%clk 0:00:08.9]}
41... Qa4 {[%clk 0:00:09.2]} 42. Qxa4 {[%clk 0:00:07.5]} 42... Rxa4 {[%clk
0:00:10.1]} 43. Kd2 {[%clk 0:00:07.5]} 43... Rb4 {[%clk 0:00:09.4]} 44. Rxa3
{[%clk 0:00:07.2]} 44... Rxb5 {[%clk 0:00:10.1]} 45. Kc3 {[%clk 0:00:07.6]}
45... Rxd5 {[%clk 0:00:10.3]} 46. Ra4 {[%clk 0:00:07.9]} 46... f5 {[%clk
0:00:09.7]} 47. Rb4 {[%clk 0:00:06.2]} 47... b5 {[%clk 0:00:09.7]} 48. Kc2
{[%clk 0:00:06]} 48... Kf7 {[%clk 0:00:10.3]} 49. Rb3 {[%clk 0:00:04.8]} 49...
Ke6 {[%clk 0:00:10.7]} 50. Ra3 {[%clk 0:00:05.1]} 50... Rc5+ {[%clk 0:00:11]}
51. Kd2 {[%clk 0:00:05]} 51... b4 {[%clk 0:00:09.4]} 52. Ra7 {[%clk 0:00:05]}
52... g6 {[%clk 0:00:06.3]} 53. Rb7 {[%clk 0:00:05.2]} 53... Rc4 {[%clk
0:00:06.6]} 54. Rb6 {[%clk 0:00:03.5]} 54... Ke5 {[%clk 0:00:06.8]} 55. Rb5+
{[%clk 0:00:03.7]} 55... d5 {[%clk 0:00:06.9]} 56. Rb6 {[%clk 0:00:04.3]} 56...
g5 {[%clk 0:00:07.4]} 57. Rb8 {[%clk 0:00:03.9]} 57... f4 {[%clk 0:00:06.5]} 58.
Re8+ {[%clk 0:00:04.8]} 58... Kf5 {[%clk 0:00:06.6]} 59. Rf8+ {[%clk 0:00:05.1]}
59... Kg4 {[%clk 0:00:06.9]} 60. Rg8 {[%clk 0:00:02.8]} 60... b3 {[%clk
0:00:04.7]} 0-1

[Event "Late-Titled-Tuesday-Blitz-September-12-2023"]
[Site "Chess.com"]
[Date "2023.09.12"]
[Round "7"]
[White "Rinqed222"]
[Black "queen_iryna"]
[Result "1/2-1/2"]
[WhiteElo "2234"]
[BlackElo "2342"]
[TimeControl "180+1"]
[EndTime "15:14:48 PDT"]
[Termination "Game drawn by agreement"]

1. e4 {[%clk 0:03:00.9]} 1... d6 {[%clk 0:03:00.9]} 2. d4 {[%clk 0:03:00.5]}
2... Nf6 {[%clk 0:02:58.8]} 3. Nc3 {[%clk 0:03:00.8]} 3... e5 {[%clk 0:02:59.2]}
4. Nge2 {[%clk 0:02:54.3]} 4... Nc6 {[%clk 0:02:58.4]} 5. h3 {[%clk 0:02:50.4]}
5... Be7 {[%clk 0:02:56.4]} 6. g4 {[%clk 0:02:49.9]} 6... O-O {[%clk 0:02:55.5]}
7. Be3 {[%clk 0:02:50.2]} 7... Re8 {[%clk 0:02:51.8]} 8. Bg2 {[%clk 0:02:50.4]}
8... Bf8 {[%clk 0:02:51.3]} 9. d5 {[%clk 0:02:31]} 9... Ne7 {[%clk 0:02:44.1]}
10. Ng3 {[%clk 0:02:30.8]} 10... Ng6 {[%clk 0:02:43.1]} 11. Qd2 {[%clk
0:02:28.3]} 11... c6 {[%clk 0:02:31.9]} 12. O-O-O {[%clk 0:02:09.4]} 12... cxd5
{[%clk 0:02:30.9]} 13. exd5 {[%clk 0:02:09.7]} 13... a6 {[%clk 0:02:02.1]} 14.
g5 {[%clk 0:02:00.9]} 14... Nd7 {[%clk 0:01:59.7]} 15. h4 {[%clk 0:02:01.1]}
15... b5 {[%clk 0:01:56.7]} 16. h5 {[%clk 0:01:57.3]} 16... Ne7 {[%clk
0:01:56.7]} 17. Be4 {[%clk 0:01:51]} 17... b4 {[%clk 0:01:50.2]} 18. Nb1 {[%clk
0:01:48.1]} 18... Nc5 {[%clk 0:01:43.7]} 19. Bxc5 {[%clk 0:01:45.8]} 19... dxc5
{[%clk 0:01:43.4]} 20. d6 {[%clk 0:01:43.5]} 20... Rb8 {[%clk 0:01:30]} 21. dxe7
{[%clk 0:01:40.2]} 21... Qxe7 {[%clk 0:01:30.9]} 22. Bc6 {[%clk 0:01:33.5]}
22... Bg4 {[%clk 0:01:27.9]} 23. Bxe8 {[%clk 0:01:21.7]} 23... Bxd1 {[%clk
0:01:27.3]} 24. Bxf7+ {[%clk 0:01:20.3]} 24... Qxf7 {[%clk 0:01:28.2]} 25. Rxd1
{[%clk 0:01:17.9]} 25... Qxa2 {[%clk 0:01:24.2]} 26. Qd5+ {[%clk 0:01:18]} 26...
Qxd5 {[%clk 0:01:24.2]} 27. Rxd5 {[%clk 0:01:18.9]} 27... Re8 {[%clk 0:01:14.2]}
28. Nd2 {[%clk 0:01:15.6]} 28... Kf7 {[%clk 0:01:05.5]} 29. Nc4 {[%clk
0:01:12.7]} 29... Be7 {[%clk 0:00:58.8]} 30. Rxe5 {[%clk 0:01:09.1]} 30... g6
{[%clk 0:00:37.6]} 31. hxg6+ {[%clk 0:01:07.1]} 31... hxg6 {[%clk 0:00:38.5]}
32. f4 {[%clk 0:01:06.8]} 32... Rh8 {[%clk 0:00:35.6]} 33. Ne4 {[%clk
0:00:44.1]} 33... Rh4 {[%clk 0:00:30.3]} 34. Ned6+ {[%clk 0:00:42]} 34... Kf8
{[%clk 0:00:28.8]} 35. Rxc5 {[%clk 0:00:40.5]} 35... Rxf4 {[%clk 0:00:25.1]} 36.
Rc8+ {[%clk 0:00:40.7]} 36... Kg7 {[%clk 0:00:25.1]} 37. Rc7 {[%clk 0:00:41.4]}
37... Kf8 {[%clk 0:00:21.3]} 38. Rc8+ {[%clk 0:00:29.9]} 38... Kg7 {[%clk
0:00:19.8]} 39. Ne8+ {[%clk 0:00:21.9]} 39... Kf7 {[%clk 0:00:19.4]} 40. Ncd6+
{[%clk 0:00:21.3]} 40... Ke6 {[%clk 0:00:19.1]} 41. Rc6 {[%clk 0:00:18.3]} 41...
Kd7 {[%clk 0:00:18.7]} 42. Rc7+ {[%clk 0:00:17.4]} 42... Ke6 {[%clk 0:00:19.1]}
43. Ra7 {[%clk 0:00:15.1]} 43... Bxg5 {[%clk 0:00:18.7]} 44. Kd1 {[%clk
0:00:13.6]} 44... Rd4+ {[%clk 0:00:18.3]} 45. Ke2 {[%clk 0:00:14.1]} 45... Rd5
{[%clk 0:00:17.3]} 46. Rxa6 {[%clk 0:00:13.7]} 46... Kd7 {[%clk 0:00:17.2]} 47.
Kf3 {[%clk 0:00:10.4]} 47... Rd2 {[%clk 0:00:17]} 48. c3 {[%clk 0:00:10.3]}
48... bxc3 {[%clk 0:00:16.6]} 49. bxc3 {[%clk 0:00:10.7]} 49... Be7 {[%clk
0:00:17.2]} 50. Ra7+ {[%clk 0:00:10.3]} 50... Ke6 {[%clk 0:00:17]} 51. Ne4
{[%clk 0:00:07.5]} 51... Rd3+ {[%clk 0:00:17]} 52. Kg4 {[%clk 0:00:08]} 52...
Re3 {[%clk 0:00:16.8]} 53. Kf4 {[%clk 0:00:08]} 53... Re1 {[%clk 0:00:16.6]} 54.
Ra6+ {[%clk 0:00:08]} 54... Kf7 {[%clk 0:00:16.2]} 55. N8d6+ {[%clk 0:00:07.5]}
55... Bxd6+ {[%clk 0:00:15.9]} 56. Nxd6+ {[%clk 0:00:07.9]} 56... Ke6 {[%clk
0:00:16.3]} 57. Ne4+ {[%clk 0:00:07.9]} 57... Kd5 {[%clk 0:00:16.3]} 58. Rd6+
{[%clk 0:00:07.8]} 58... Kc4 {[%clk 0:00:16]} 59. Rc6+ {[%clk 0:00:07.9]} 59...
Kd5 {[%clk 0:00:16.1]} 60. Rxg6 {[%clk 0:00:08.1]} 60... Rxe4+ {[%clk
0:00:15.4]} 61. Kf3 {[%clk 0:00:08.8]} 61... Rc4 {[%clk 0:00:15.4]} 62. Rg5+
{[%clk 0:00:08.7]} 62... Kd6 {[%clk 0:00:15.8]} 63. Rg6+ {[%clk 0:00:07.8]}
63... Kd5 {[%clk 0:00:16.3]} 64. Rg5+ {[%clk 0:00:05.3]} 64... Kd6 {[%clk
0:00:16.7]} 65. Ke3 {[%clk 0:00:05.8]} 65... Rxc3+ {[%clk 0:00:16.6]} 66. Kd4
{[%clk 0:00:06.7]} 66... Ra3 {[%clk 0:00:16.5]} 67. Rg6+ {[%clk 0:00:07.6]}
67... Ke7 {[%clk 0:00:16.8]} 68. Ke5 {[%clk 0:00:06.8]} 1/2-1/2

[Event "Late-Titled-Tuesday-Blitz-September-12-2023"]
[Site "Chess.com"]
[Date "2023.09.12"]
[Round "7"]
[White "HajiyevKanan"]
[Black "Casper"]
[Result "0-1"]
[WhiteElo "2499"]
[BlackElo "2479"]
[TimeControl "180+1"]
[EndTime "15:14:53 PDT"]
[Termination "Casper won by resignation"]

1. d4 {[%clk 0:03:00.9]} 1... Nf6 {[%clk 0:02:59.3]} 2. Nf3 {[%clk 0:03:01.8]}
2... g6 {[%clk 0:02:59.3]} 3. c4 {[%clk 0:03:02.7]} 3... Bg7 {[%clk 0:02:59.7]}
4. g3 {[%clk 0:03:03.2]} 4... O-O {[%clk 0:02:59.4]} 5. Bg2 {[%clk 0:03:04.1]}
5... c6 {[%clk 0:02:57.7]} 6. O-O {[%clk 0:03:04.1]} 6... d6 {[%clk 0:02:57.6]}
7. b3 {[%clk 0:03:03.3]} 7... Qa5 {[%clk 0:02:57]} 8. Qd2 {[%clk 0:03:03.1]}
8... Qh5 {[%clk 0:02:56.5]} 9. Qg5 {[%clk 0:03:03.1]} 9... Qxg5 {[%clk
0:02:52.6]} 10. Bxg5 {[%clk 0:03:02.9]} 10... Ne4 {[%clk 0:02:45.8]} 11. Bf4
{[%clk 0:02:38.9]} 11... c5 {[%clk 0:02:36.3]} 12. Rd1 {[%clk 0:02:33.9]} 12...
Nc6 {[%clk 0:02:33.6]} 13. Be3 {[%clk 0:02:21.4]} 13... Bg4 {[%clk 0:02:15.4]}
14. Rd3 {[%clk 0:02:12.2]} 14... Nb4 {[%clk 0:02:12.8]} 15. Na3 {[%clk
0:01:53.5]} 15... Nxd3 {[%clk 0:02:10]} 16. exd3 {[%clk 0:01:54.4]} 16... Bxf3
{[%clk 0:01:51.3]} 17. Bxf3 {[%clk 0:01:52.3]} 17... cxd4 {[%clk 0:01:51.6]} 18.
Bxe4 {[%clk 0:01:40.5]} 18... dxe3 {[%clk 0:01:51.3]} 19. Rd1 {[%clk 0:01:40.1]}
19... exf2+ {[%clk 0:01:51.1]} 20. Kxf2 {[%clk 0:01:41]} 20... Bd4+ {[%clk
0:01:48.8]} 21. Kf3 {[%clk 0:01:39]} 21... Rab8 {[%clk 0:01:38]} 22. Nb5 {[%clk
0:01:38.1]} 22... Bb6 {[%clk 0:01:30.4]} 23. d4 {[%clk 0:01:29.7]} 23... a6
{[%clk 0:01:30.1]} 24. Nc3 {[%clk 0:01:30.1]} 24... e6 {[%clk 0:01:30]} 25. h4
{[%clk 0:01:12.6]} 25... f5 {[%clk 0:01:28.9]} 26. Bc2 {[%clk 0:01:10.1]} 26...
Rbe8 {[%clk 0:01:27]} 27. b4 {[%clk 0:01:05.1]} 27... e5 {[%clk 0:00:57.5]} 28.
dxe5 {[%clk 0:01:04.3]} 28... dxe5 {[%clk 0:00:55.4]} 29. Nd5 {[%clk 0:01:00.4]}
29... Bd4 {[%clk 0:00:50.1]} 30. c5 {[%clk 0:00:52.7]} 30... Kg7 {[%clk
0:00:49.8]} 31. Bb3 {[%clk 0:00:48.9]} 31... h6 {[%clk 0:00:40.2]} 32. Nc7
{[%clk 0:00:48.7]} 32... Kf6 {[%clk 0:00:27.5]} 33. Nxe8+ {[%clk 0:00:48.5]}
33... Rxe8 {[%clk 0:00:28.4]} 34. Bd5 {[%clk 0:00:49.2]} 34... Re7 {[%clk
0:00:28]} 35. a4 {[%clk 0:00:48.3]} 35... e4+ {[%clk 0:00:24.2]} 36. Ke2 {[%clk
0:00:48.3]} 36... Ke5 {[%clk 0:00:24.1]} 37. Bc4 {[%clk 0:00:44.9]} 37... g5
{[%clk 0:00:22.3]} 38. hxg5 {[%clk 0:00:43.5]} 38... hxg5 {[%clk 0:00:23.2]} 39.
Rh1 {[%clk 0:00:44]} 39... f4 {[%clk 0:00:23.4]} 40. gxf4+ {[%clk 0:00:43.7]}
40... gxf4 {[%clk 0:00:23.4]} 41. Rh5+ {[%clk 0:00:44.4]} 41... Kf6 {[%clk
0:00:23.7]} 42. Bd5 {[%clk 0:00:38.9]} 42... f3+ {[%clk 0:00:20.3]} 43. Kf1
{[%clk 0:00:39.3]} 43... Bc3 {[%clk 0:00:19.3]} 44. b5 {[%clk 0:00:38.4]} 44...
axb5 {[%clk 0:00:15.3]} 45. axb5 {[%clk 0:00:39.3]} 45... Bd4 {[%clk 0:00:15.6]}
46. c6 {[%clk 0:00:36.7]} 46... Rg7 {[%clk 0:00:15.2]} 47. Rh1 {[%clk
0:00:32.8]} 47... bxc6 {[%clk 0:00:15.2]} 48. Bxe4 {[%clk 0:00:31.7]} 48... f2
{[%clk 0:00:14.6]} 49. Rh6+ {[%clk 0:00:11.5]} 49... Ke5 {[%clk 0:00:13.2]} 50.
Bg2 {[%clk 0:00:12.3]} 50... cxb5 {[%clk 0:00:12.9]} 51. Rh5+ {[%clk 0:00:12.3]}
51... Kf4 {[%clk 0:00:09.6]} 52. Rxb5 {[%clk 0:00:13.2]} 52... Re7 {[%clk
0:00:09.5]} 53. Rb1 {[%clk 0:00:12.5]} 53... Ke3 {[%clk 0:00:08.1]} 54. Rb3+
{[%clk 0:00:09.4]} 54... Kd2 {[%clk 0:00:08]} 55. Rb2+ {[%clk 0:00:01.2]} 55...
Bxb2 {[%clk 0:00:08.1]} 56. Kxf2 {[%clk 0:00:01.4]} 56... Bd4+ {[%clk
0:00:08.7]} 57. Kf3 {[%clk 0:00:02]} 57... Rf7+ {[%clk 0:00:08.9]} 58. Kg3
{[%clk 0:00:02.3]} 58... Ke3 {[%clk 0:00:08.6]} 59. Bd5 {[%clk 0:00:02.9]} 59...
Rg7+ {[%clk 0:00:09]} 60. Kh4 {[%clk 0:00:03.5]} 60... Bf6+ {[%clk 0:00:08.5]}
61. Kh5 {[%clk 0:00:03.9]} 61... Rg5+ {[%clk 0:00:08.8]} 62. Kh6 {[%clk
0:00:04.5]} 62... Rxd5 {[%clk 0:00:09.3]} 63. Kg6 {[%clk 0:00:04.9]} 0-1

[Event "Late-Titled-Tuesday-Blitz-September-12-2023"]
[Site "Chess.com"]
[Date "2023.09.12"]
[Round "7"]
[White "Dewarfd"]
[Black "falzehope0"]
[Result "1/2-1/2"]
[WhiteElo "2201"]
[BlackElo "2369"]
[TimeControl "180+1"]
[EndTime "15:14:53 PDT"]
[Termination "Game drawn - insufficient material"]

1. d4 {[%clk 0:02:58.3]} 1... d6 {[%clk 0:02:59.9]} 2. e3 {[%clk 0:02:59]} 2...
Nf6 {[%clk 0:02:59.7]} 3. Nf3 {[%clk 0:02:59.8]} 3... Nbd7 {[%clk 0:03:00.3]} 4.
Be2 {[%clk 0:03:00.2]} 4... e5 {[%clk 0:03:00.8]} 5. dxe5 {[%clk 0:03:00.5]}
5... dxe5 {[%clk 0:03:01.1]} 6. O-O {[%clk 0:02:56.9]} 6... Be7 {[%clk
0:03:01.6]} 7. c4 {[%clk 0:02:56.7]} 7... O-O {[%clk 0:03:02]} 8. a3 {[%clk
0:02:56.6]} 8... Re8 {[%clk 0:03:02.6]} 9. b4 {[%clk 0:02:56.5]} 9... c6 {[%clk
0:03:02.4]} 10. Bb2 {[%clk 0:02:56.5]} 10... Qc7 {[%clk 0:03:02.9]} 11. c5
{[%clk 0:02:56.8]} 11... Bd8 {[%clk 0:03:01.6]} 12. Nbd2 {[%clk 0:02:56.3]}
12... Nf8 {[%clk 0:03:00.9]} 13. Nc4 {[%clk 0:02:56.5]} 13... Ng6 {[%clk
0:02:46.8]} 14. Nd6 {[%clk 0:02:49.8]} 14... Re7 {[%clk 0:02:41.2]} 15. Bc4
{[%clk 0:02:46.5]} 15... Be6 {[%clk 0:02:39.2]} 16. Nxe5 {[%clk 0:02:10.1]}
16... Nxe5 {[%clk 0:02:37.2]} 17. Bxe5 {[%clk 0:02:09.6]} 17... Bxc4 {[%clk
0:02:27.1]} 18. Nxc4 {[%clk 0:02:09.8]} 18... Rxe5 {[%clk 0:02:25.1]} 19. Nxe5
{[%clk 0:02:07.6]} 19... Qxe5 {[%clk 0:02:25.2]} 20. Qf3 {[%clk 0:02:02.2]}
20... Bc7 {[%clk 0:02:19.3]} 21. g3 {[%clk 0:02:00.8]} 21... Rd8 {[%clk
0:02:08.7]} 22. Rad1 {[%clk 0:02:00.8]} 22... Rd5 {[%clk 0:01:56.1]} 23. Qf4
{[%clk 0:01:32.7]} 23... Qe7 {[%clk 0:01:50.7]} 24. Qf3 {[%clk 0:01:25.6]} 24...
Qd7 {[%clk 0:01:47.8]} 25. Rxd5 {[%clk 0:01:25.4]} 25... Qxd5 {[%clk 0:01:45.1]}
26. Qxd5 {[%clk 0:01:24.9]} 26... Nxd5 {[%clk 0:01:39.6]} 27. Rd1 {[%clk
0:01:25.2]} 27... Nf6 {[%clk 0:01:39]} 28. f3 {[%clk 0:01:23.8]} 28... Kf8
{[%clk 0:01:38.4]} 29. e4 {[%clk 0:01:24.1]} 29... Ke7 {[%clk 0:01:37.8]} 30.
Kf2 {[%clk 0:01:24.6]} 30... g5 {[%clk 0:01:36.1]} 31. Ke3 {[%clk 0:01:16.8]}
31... h5 {[%clk 0:01:34.3]} 32. a4 {[%clk 0:01:13.2]} 32... Ke6 {[%clk
0:01:29.5]} 33. b5 {[%clk 0:01:11.8]} 33... Nd7 {[%clk 0:01:23.9]} 34. bxc6
{[%clk 0:01:01.8]} 34... bxc6 {[%clk 0:01:23.2]} 35. Rc1 {[%clk 0:00:57]} 35...
Ba5 {[%clk 0:01:11.7]} 36. Kd4 {[%clk 0:00:52.4]} 36... Bc7 {[%clk 0:01:08.6]}
37. Rb1 {[%clk 0:00:46.8]} 37... Ne5 {[%clk 0:00:58.5]} 38. f4 {[%clk
0:00:42.3]} 38... gxf4 {[%clk 0:00:56.2]} 39. gxf4 {[%clk 0:00:43.2]} 39... Nf3+
{[%clk 0:00:56.5]} 40. Ke3 {[%clk 0:00:43.8]} 40... Nxh2 {[%clk 0:00:55.4]} 41.
Rb7 {[%clk 0:00:43.4]} 41... Kd7 {[%clk 0:00:49.5]} 42. Rxa7 {[%clk 0:00:42.9]}
42... Kc8 {[%clk 0:00:46.6]} 43. Ra8+ {[%clk 0:00:41.5]} 43... Bb8 {[%clk
0:00:45.3]} 44. Ra6 {[%clk 0:00:40.5]} 44... Bc7 {[%clk 0:00:42.9]} 45. Rxc6
{[%clk 0:00:38]} 45... Kd7 {[%clk 0:00:38.2]} 46. Ra6 {[%clk 0:00:30.9]} 46...
h4 {[%clk 0:00:37]} 47. e5 {[%clk 0:00:28.8]} 47... h3 {[%clk 0:00:36.6]} 48.
Kf2 {[%clk 0:00:22.7]} 48... Ng4+ {[%clk 0:00:31]} 49. Kg3 {[%clk 0:00:23]}
49... h2 {[%clk 0:00:31.1]} 50. Kg2 {[%clk 0:00:20.3]} 50... Kc8 {[%clk
0:00:25.7]} 51. e6 {[%clk 0:00:18.7]} 51... fxe6 {[%clk 0:00:19.5]} 52. Rxe6
{[%clk 0:00:19.6]} 52... Bxf4 {[%clk 0:00:18.3]} 53. Rg6 {[%clk 0:00:19.3]}
53... Ne3+ {[%clk 0:00:17.6]} 54. Kh1 {[%clk 0:00:18.6]} 54... Nd1 {[%clk
0:00:11.6]} 55. Rg8+ {[%clk 0:00:17.5]} 55... Kc7 {[%clk 0:00:11.4]} 56. Rh8
{[%clk 0:00:17.8]} 56... Nf2+ {[%clk 0:00:10.7]} 57. Kg2 {[%clk 0:00:18.1]}
57... h1=Q+ {[%clk 0:00:03.8]} 58. Rxh1 {[%clk 0:00:17.2]} 58... Nxh1 {[%clk
0:00:04.7]} 59. Kxh1 {[%clk 0:00:17.3]} 59... Be3 {[%clk 0:00:04.7]} 60. Kg2
{[%clk 0:00:15.2]} 60... Bxc5 {[%clk 0:00:05.6]} 61. Kf3 {[%clk 0:00:15.7]}
61... Kb6 {[%clk 0:00:06]} 62. Ke4 {[%clk 0:00:16.3]} 62... Ka5 {[%clk
0:00:06.9]} 63. Kd5 {[%clk 0:00:16.6]} 63... Bf2 {[%clk 0:00:07]} 64. Kc4 {[%clk
0:00:15.7]} 64... Kxa4 {[%clk 0:00:07.6]} 1/2-1/2

[Event "Late-Titled-Tuesday-Blitz-September-12-2023"]
[Site "Chess.com"]
[Date "2023.09.12"]
[Round "7"]
[White "AndreiITrifan"]
[Black "maksimys18"]
[Result "1-0"]
[WhiteElo "2652"]
[BlackElo "2492"]
[TimeControl "180+1"]
[EndTime "15:14:54 PDT"]
[Termination "AndreiITrifan won by checkmate"]

1. Nf3 {[%clk 0:03:00]} 1... e6 {[%clk 0:02:36.9]} 2. c4 {[%clk 0:02:55.4]} 2...
d5 {[%clk 0:02:35.8]} 3. e3 {[%clk 0:02:54.8]} 3... Nf6 {[%clk 0:02:34.7]} 4. b3
{[%clk 0:02:54.9]} 4... Be7 {[%clk 0:02:35]} 5. Bb2 {[%clk 0:02:55.3]} 5... O-O
{[%clk 0:02:34.9]} 6. Nc3 {[%clk 0:02:54.3]} 6... b6 {[%clk 0:02:34.7]} 7. cxd5
{[%clk 0:02:49.8]} 7... exd5 {[%clk 0:02:33.4]} 8. Be2 {[%clk 0:02:46.8]} 8...
Be6 {[%clk 0:02:18.3]} 9. O-O {[%clk 0:02:45]} 9... c6 {[%clk 0:02:18]} 10. Qc2
{[%clk 0:02:38.8]} 10... Nbd7 {[%clk 0:02:03.5]} 11. Rac1 {[%clk 0:02:33.3]}
11... Rc8 {[%clk 0:02:03.1]} 12. Rfd1 {[%clk 0:02:33]} 12... h6 {[%clk
0:02:02.3]} 13. Qb1 {[%clk 0:02:30.4]} 13... Bd6 {[%clk 0:02:01.1]} 14. h3
{[%clk 0:02:14]} 14... Qe7 {[%clk 0:01:56.9]} 15. d4 {[%clk 0:02:06]} 15... Bb8
{[%clk 0:01:52.9]} 16. Bf1 {[%clk 0:02:05.5]} 16... Rfe8 {[%clk 0:01:41.1]} 17.
Ne2 {[%clk 0:02:05.4]} 17... Nf8 {[%clk 0:01:38.3]} 18. Nf4 {[%clk 0:01:59.6]}
18... Bxf4 {[%clk 0:01:37.3]} 19. exf4 {[%clk 0:02:00.5]} 19... Qd6 {[%clk
0:01:36.3]} 20. Ne5 {[%clk 0:01:56.3]} 20... N6d7 {[%clk 0:01:33]} 21. g3 {[%clk
0:01:52.2]} 21... Nxe5 {[%clk 0:01:29.9]} 22. dxe5 {[%clk 0:01:47.2]} 22... Qd7
{[%clk 0:01:16.9]} 23. Kh2 {[%clk 0:01:34.9]} 23... Bf5 {[%clk 0:01:15.6]} 24.
Qa1 {[%clk 0:01:30.4]} 24... Ng6 {[%clk 0:01:11.6]} 25. g4 {[%clk 0:01:22.7]}
25... Bxg4 {[%clk 0:01:08.7]} 26. hxg4 {[%clk 0:01:23.6]} 26... Qxg4 {[%clk
0:01:09.3]} 27. Rd3 {[%clk 0:01:17]} 27... Nxf4 {[%clk 0:01:01.2]} 28. Rg3
{[%clk 0:01:12.9]} 28... Qh4+ {[%clk 0:01:01.2]} 29. Kg1 {[%clk 0:01:12.5]}
29... Re6 {[%clk 0:00:59.8]} 30. Re1 {[%clk 0:00:54.4]} 30... Nh5 {[%clk
0:00:57.7]} 31. Rg2 {[%clk 0:00:41.1]} 31... Nf4 {[%clk 0:00:52.3]} 32. Rg3
{[%clk 0:00:37]} 32... Rce8 {[%clk 0:00:51.3]} 33. Ree3 {[%clk 0:00:32.5]} 33...
g5 {[%clk 0:00:50.5]} 34. Ref3 {[%clk 0:00:28.5]} 34... Rg6 {[%clk 0:00:42.4]}
35. Qc1 {[%clk 0:00:22]} 35... Nh5 {[%clk 0:00:40.3]} 36. Rh3 {[%clk 0:00:18.5]}
36... Qg4+ {[%clk 0:00:40.5]} 37. Kh1 {[%clk 0:00:17.8]} 37... Nf4 {[%clk
0:00:39]} 38. Rfg3 {[%clk 0:00:16.6]} 38... Qf5 {[%clk 0:00:35.7]} 39. Rh2
{[%clk 0:00:17.1]} 39... h5 {[%clk 0:00:32.2]} 40. Qe3 {[%clk 0:00:14.1]} 40...
h4 {[%clk 0:00:31.8]} 41. Rg1 {[%clk 0:00:13.4]} 41... c5 {[%clk 0:00:31.5]} 42.
Bh3 {[%clk 0:00:11.5]} 42... Nxh3 {[%clk 0:00:25.7]} 43. Qxh3 {[%clk 0:00:12.4]}
43... Qe4+ {[%clk 0:00:20.5]} 44. f3 {[%clk 0:00:11.6]} 44... Qf4 {[%clk
0:00:18.1]} 45. Rhg2 {[%clk 0:00:11.8]} 45... d4 {[%clk 0:00:17.2]} 46. Bc1
{[%clk 0:00:12]} 46... Qxe5 {[%clk 0:00:14.7]} 47. Rxg5 {[%clk 0:00:12.3]} 47...
Qf6 {[%clk 0:00:08.8]} 48. Qxh4 {[%clk 0:00:11]} 48... Qxf3+ {[%clk 0:00:08.9]}
49. R1g2 {[%clk 0:00:09.1]} 49... Qf1+ {[%clk 0:00:09.2]} 50. Kh2 {[%clk
0:00:08.9]} 50... Re6 {[%clk 0:00:08.6]} 51. Bf4 {[%clk 0:00:07.7]} 51... Qf3
{[%clk 0:00:07.9]} 52. Be5 {[%clk 0:00:04.3]} 52... Rxe5 {[%clk 0:00:06.2]} 53.
Rxg6+ {[%clk 0:00:04.8]} 53... fxg6 {[%clk 0:00:06.6]} 54. Rxg6+ {[%clk
0:00:05.7]} 54... Kf7 {[%clk 0:00:06.5]} 55. Qh7+ {[%clk 0:00:05.6]} 55... Ke8
{[%clk 0:00:06.8]} 56. Rg8+ {[%clk 0:00:05.9]} 56... Qf8 {[%clk 0:00:07.5]} 57.
Rxf8+ {[%clk 0:00:06.3]} 57... Kxf8 {[%clk 0:00:08.4]} 58. Qh8+ {[%clk
0:00:07.1]} 58... Ke7 {[%clk 0:00:08.6]} 59. Qxe5+ {[%clk 0:00:08]} 59... Kd7
{[%clk 0:00:09.5]} 60. Qd5+ {[%clk 0:00:08.4]} 60... Kc7 {[%clk 0:00:10]} 61.
Kg3 {[%clk 0:00:09.3]} 61... a5 {[%clk 0:00:10.1]} 62. Kf4 {[%clk 0:00:10.2]}
62... Kb8 {[%clk 0:00:10.8]} 63. Ke5 {[%clk 0:00:10.5]} 63... Ka7 {[%clk
0:00:11.7]} 64. Kd6 {[%clk 0:00:11.4]} 64... Ka6 {[%clk 0:00:12.6]} 65. Kc7
{[%clk 0:00:11.4]} 65... Kb5 {[%clk 0:00:13.5]} 66. Qc4# {[%clk 0:00:11.5]} 1-0